fUST/lending_fUST_20250811
["ID","MTS","AMOUNT","RATE_DAILY","PERIOD"]
[378596239,1754921444195,-207.83573585,0.00019178,2]
[378596240,1754921444204,-460.0,0.00019178,2]
[378596241,1754921444214,-460.0,0.00019178,2]
[378596243,1754921444223,-798.42,0.00019178,2]
[378596245,1754921444232,-460.0,0.00019178,2]
[378596247,1754921444241,-460.0,0.00019178,2]
[378596249,1754921444251,-1391.19,0.00019178,2]
[378596251,1754921444260,-460.0,0.00019178,2]
[378596253,1754921444269,-460.0,0.00019178,2]
[378596255,1754921444279,-405.57055457,0.00019178,2]
[378596256,1754921444288,-460.0,0.00019178,2]
[378596258,1754921444297,-460.0,0.00019178,2]
[378596260,1754921444307,-150.67266954,0.00019178,2]
[378596262,1754921444317,-460.0,0.00019178,2]
[378596264,1754921444326,-460.0,0.00019178,2]
[378596266,1754921444336,-482.92145949,0.00019178,2]
[378596268,1754921444345,-460.0,0.00019178,2]
[378596270,1754921444354,-460.0,0.00019178,2]
[378596272,1754921444364,-460.0,0.00019178,2]
[378596274,1754921444374,-460.0,0.00019178,2]
[378596276,1754921444383,-873.33,0.00019178,2]
[378596278,1754921444393,-460.0,0.00019178,2]
[378596280,1754921444403,-460.0,0.00019178,2]
[378596282,1754921444413,-460.0,0.00019178,2]
[378596284,1754921444422,-460.0,0.00019178,2]
[378596286,1754921444434,-888.28,0.00019178,2]
[378596288,1754921444444,-460.0,0.00019178,2]
[378596290,1754921444453,-460.0,0.00019178,2]
[378596292,1754921444463,-735.6,0.00019178,2]
[378596294,1754921444472,-460.0,0.00019178,2]
[378596297,1754921444482,-460.0,0.00019178,2]
[378596298,1754921444492,-460.0,0.00019178,2]
[378596301,1754921444501,-460.0,0.00019178,2]
[378596303,1754921444511,-460.0,0.00019178,2]
[378596305,1754921444521,-460.0,0.00019178,2]
[378596307,1754921444530,-460.0,0.00019178,2]
[378596309,1754921444539,-460.0,0.00019178,2]
[378596310,1754921444549,-460.0,0.00019178,2]
[378596312,1754921444558,-11368.06,0.00019178,2]
[378596314,1754921444567,-460.0,0.00019178,2]
[378596316,1754921444576,-460.0,0.00019178,2]
[378596318,1754921444586,-460.0,0.00019178,2]
[378596320,1754921444595,-460.0,0.00019178,2]
[378596321,1754921444605,-460.0,0.00019178,2]
[378596322,1754921444614,-213.869245,0.00019178,10]
[378596323,1754921444624,-460.0,0.00019178,2]
[378596325,1754921444633,-460.0,0.00019178,2]
[378596327,1754921444642,-167.84470587,0.00019178,2]
[378596329,1754921444652,-151.0,0.00019178,2]
[378596331,1754921444661,-460.0,0.00019178,2]
[378596333,1754921444672,-460.0,0.00019178,2]
[378596335,1754921444682,-460.0,0.00019178,2]
[378596336,1754921444692,-500.0,0.00019178,2]
[378596337,1754921444702,-1206.91,0.00019178,2]
[378596338,1754921444712,-460.0,0.00019178,2]
[378596339,1754921444721,-151.0,0.00019178,2]
[378596340,1754921444730,-460.0,0.00019178,2]
[378596341,1754921444740,-151.0,0.00019178,2]
[378596342,1754921444749,-460.0,0.00019178,2]
[378596343,1754921444759,-151.0,0.00019178,2]
[378596344,1754921444768,-460.0,0.00019178,2]
[378596345,1754921444778,-500.0,0.00019178,2]
[378596346,1754921444789,-460.0,0.00019178,2]
[378596347,1754921444798,-151.0,0.00019178,2]
[378596348,1754921444808,-151.0,0.00019178,2]
[378596349,1754921444818,-495.29769671,0.00019178,2]
[378596350,1754921444828,-151.0,0.00019178,2]
[378596351,1754921444837,-460.0,0.00019178,2]
[378596352,1754921444846,-782.54,0.00019178,2]
[378596353,1754921444856,-460.0,0.00019178,2]
[378596354,1754921444866,-460.0,0.00019178,2]
[378596355,1754921444875,-460.0,0.00019178,2]
[378596356,1754921444885,-1103.38,0.00019178,2]
[378596357,1754921444895,-151.0,0.00019178,2]
[378596358,1754921444905,-151.0,0.00019178,2]
[378596359,1754921444915,-289.79542181,0.00019178,2]
[378596360,1754921444924,-151.0,0.00019178,2]
[378596361,1754921444934,-151.0,0.00019178,2]
[378596362,1754921444944,-460.0,0.00019178,2]
[378596364,1754921444954,-1943.89,0.00019178,2]
[378596365,1754921444964,-500.0,0.00019178,2]
[378596366,1754921444974,-460.0,0.00019178,2]
[378596367,1754921444984,-866.15,0.00019178,2]
[378596368,1754921444993,-500.0,0.00019178,2]
[378596369,1754921445008,-460.0,0.00019178,2]
[378596370,1754921445018,-853.53,0.00019178,2]
[378596371,1754921445027,-460.0,0.00019178,2]
[378596372,1754921445037,-460.0,0.00019178,2]
[378596373,1754921445047,-1016.59,0.00019178,2]
[378596374,1754921445056,-460.0,0.00019178,2]
[378596375,1754921445065,-939.94,0.00019178,2]
[378596376,1754921445075,-462.9413963,0.00019178,2]
[378596377,1754921445084,-460.0,0.00019178,2]
[378596378,1754921445094,-460.0,0.00019178,2]
[378596379,1754921445104,-460.0,0.00019178,2]
[378596380,1754921445113,-460.0,0.00019178,2]
[378596381,1754921445123,-460.0,0.00019178,2]
[378596382,1754921445132,-460.0,0.00019178,2]
[378596383,1754921445142,-460.0,0.00019178,2]
[378596384,1754921445151,-460.0,0.00019178,2]
[378596385,1754921445161,-460.0,0.00019178,2]
[378596386,1754921445172,-460.0,0.00019178,2]
[378596387,1754921445183,-3653.51,0.00019178,2]
[378596388,1754921445192,-467.75979829,0.00019178,2]
[378596389,1754921445201,-460.0,0.00019178,2]
[378596390,1754921445211,-4588.46,0.00019178,2]
[378596391,1754921445222,-460.0,0.00019178,2]
[378596392,1754921445233,-460.0,0.00019178,2]
[378596393,1754921445242,-460.0,0.00019178,2]
[378596394,1754921445252,-2000.0,0.00019178,2]
[378596395,1754921445261,-589.46,0.00019178,2]
[378596396,1754921445271,-983.52,0.00019178,2]
[378596397,1754921445281,-2000.0,0.00019178,2]
[378596398,1754921445290,-262.031,0.00019178,2]
[378596399,1754921445300,-2800.95,0.00019178,2]
[378596400,1754921445309,-460.0,0.00019178,2]
[378596401,1754921445318,-877.3,0.00019178,2]
[378596402,1754921445328,-460.0,0.00019178,2]
[378596403,1754921445337,-460.0,0.00019178,2]
[378596404,1754921445347,-460.0,0.00019178,2]
[378596405,1754921445356,-3380.51,0.00019178,2]
[378596406,1754921445366,-460.0,0.00019178,2]
[378596407,1754921445375,-460.0,0.00019178,2]
[378596408,1754921445385,-460.0,0.00019178,2]
[378596409,1754921445395,-460.0,0.00019178,2]
[378596410,1754921445404,-557.39775498,0.00019178,2]
[378596411,1754921445413,-460.0,0.00019178,2]
[378596412,1754921445423,-460.0,0.00019178,2]
[378596413,1754921445435,-228.62727682,0.00019178,2]
[378596414,1754921445444,-460.0,0.00019178,2]
[378596415,1754921445454,-460.0,0.00019178,2]
[378596416,1754921445464,-1442.1,0.00019178,2]
[378596417,1754921445474,-460.0,0.00019178,2]
[378596418,1754921445483,-151.0,0.00019178,2]
[378596419,1754921445493,-460.0,0.00019178,2]
[378596420,1754921445505,-460.0,0.00019178,2]
[378596421,1754921445521,-460.0,0.00019178,2]
[378596422,1754921445530,-460.0,0.00019178,2]
[378596423,1754921445540,-151.0,0.00019178,2]
[378596424,1754921445549,-151.0,0.00019178,2]
[378596425,1754921445559,-460.0,0.00019178,2]
[378596426,1754921445568,-460.0,0.00019178,2]
[378596427,1754921445577,-269.4039774,0.00019178,2]
[378596428,1754921445587,-1919.5,0.00019178,2]
[378596429,1754921445597,-460.0,0.00019178,2]
[378596430,1754921445607,-186.33806845,0.00019178,2]
[378596431,1754921445616,-460.0,0.00019178,2]
[378596432,1754921445626,-460.0,0.00019178,2]
[378596433,1754921445635,-460.0,0.00019178,2]
[378596434,1754921445644,-768.29,0.00019178,2]
[378596435,1754921445654,-460.0,0.00019178,2]
[378596436,1754921445664,-2173.25,0.00019178,2]
[378596437,1754921445673,-4343.12,0.00019178,2]
[378596439,1754921445686,-1246.41,0.00019178,2]
[378596440,1754921445695,-460.0,0.00019178,2]
[378596441,1754921445705,-460.0,0.00019178,2]
[378596442,1754921445715,-460.0,0.00019178,2]
[378596443,1754921445724,-586.96299819,0.00019178,2]
[378596444,1754921445733,-460.0,0.00019178,2]
[378596445,1754921445743,-2802.01,0.00019178,2]
[378596446,1754921445752,-460.0,0.00019178,2]
[378596447,1754921445762,-1921.72,0.00019178,2]
[378596448,1754921445771,-460.0,0.00019178,2]
[378596449,1754921445781,-460.0,0.00019178,2]
[378596450,1754921445790,-460.0,0.00019178,2]
[378596451,1754921445800,-460.0,0.00019178,2]
[378596452,1754921445810,-460.0,0.00019178,2]
[378596453,1754921445819,-1195.07,0.00019178,2]
[378596454,1754921445829,-460.0,0.00019178,2]
[378596455,1754921445838,-460.0,0.00019178,2]
[378596456,1754921445847,-460.0,0.00019178,2]
[378596457,1754921445857,-460.0,0.00019178,2]
[378596458,1754921445866,-460.0,0.00019178,2]
[378596459,1754921445876,-460.0,0.00019178,2]
[378596460,1754921445886,-460.0,0.00019178,2]
[378596461,1754921445896,-460.0,0.00019178,2]
[378596462,1754921445905,-583.08,0.00019178,2]
[378596463,1754921445915,-460.0,0.00019178,2]
[378596464,1754921445924,-460.0,0.00019178,2]
[378596465,1754921445935,-460.0,0.00019178,2]
[378596466,1754921445944,-478.84656231,0.00019178,2]
[378596467,1754921445954,-460.0,0.00019178,2]
[378596468,1754921445963,-487.34,0.00019178,2]
[378596469,1754921445972,-460.0,0.00019178,2]
[378596470,1754921445982,-557.17317756,0.00019178,2]
[378596471,1754921445991,-460.0,0.00019178,2]
[378596472,1754921446005,-460.0,0.00019178,2]
[378596473,1754921446014,-1664.59,0.00019178,2]
[378596474,1754921446024,-554.38,0.00019178,2]
[378596475,1754921446033,-460.0,0.00019178,2]
[378596476,1754921446044,-1232.1,0.00019178,2]
[378596477,1754921446053,-460.0,0.00019178,2]
[378596478,1754921446063,-731.14,0.00019178,2]
[378596479,1754921446074,-460.0,0.00019178,2]
[378596480,1754921446084,-460.0,0.00019178,2]
[378596481,1754921446093,-460.0,0.00019178,2]
[378596482,1754921446103,-460.0,0.00019178,2]
[378596483,1754921446113,-460.0,0.00019178,2]
[378596484,1754921446123,-460.0,0.00019178,2]
[378596485,1754921446133,-460.74180666,0.00019178,2]
[378596486,1754921446142,-460.0,0.00019178,2]
[378596487,1754921446152,-1339.57,0.00019178,2]
[378596488,1754921446161,-460.0,0.00019178,2]
[378596489,1754921446171,-886.79,0.00019178,2]
[378596490,1754921446181,-460.0,0.00019178,2]
[378596492,1754921446191,-460.0,0.00019178,2]
[378596494,1754921446200,-460.0,0.00019178,2]
[378596496,1754921446209,-460.0,0.00019178,2]
[378596497,1754921446219,-679.89,0.00019178,2]
[378596499,1754921446229,-460.0,0.00019178,2]
[378596502,1754921446240,-460.0,0.00019178,2]
[378596503,1754921446249,-460.0,0.00019178,2]
[378596504,1754921446258,-1193.9,0.00019178,2]
[378596505,1754921446267,-1062.11,0.00019178,2]
[378596506,1754921446277,-166.64847037,0.00019178,2]
[378596508,1754921446286,-460.0,0.00019178,2]
[378596510,1754921446296,-460.0,0.00019178,2]
[378596512,1754921446306,-460.0,0.00019178,2]
[378596514,1754921446315,-460.0,0.00019178,2]
[378596516,1754921446325,-460.0,0.00019178,2]
[378596518,1754921446335,-460.0,0.00019178,2]
[378596520,1754921446344,-460.0,0.00019178,2]
[378596522,1754921446354,-3411.63,0.00019178,2]
[378596524,1754921446364,-460.0,0.00019178,2]
[378596526,1754921446374,-303.90758399,0.00019178,2]
[378596528,1754921446384,-460.0,0.00019178,2]
[378596530,1754921446394,-460.0,0.00019178,2]
[378596532,1754921446405,-460.0,0.00019178,2]
[378596534,1754921446415,-460.0,0.00019178,2]
[378596536,1754921446424,-493.27,0.00019178,2]
[378596538,1754921446435,-460.0,0.00019178,2]
[378596540,1754921446445,-460.0,0.00019178,2]
[378596542,1754921446454,-460.0,0.00019178,2]
[378596544,1754921446464,-460.0,0.00019178,2]
[378596546,1754921446473,-515.99,0.00019178,2]
[378596548,1754921446483,-460.0,0.00019178,2]
[378596550,1754921446493,-460.0,0.00019178,2]
[378596552,1754921446503,-483.16,0.00019178,2]
[378596554,1754921446512,-460.0,0.00019178,2]
[378596556,1754921446522,-460.0,0.00019178,2]
[378596558,1754921446532,-1201.45,0.00019178,2]
[378596560,1754921446541,-671.07,0.00019178,2]
[378596562,1754921446551,-460.0,0.00019178,2]
[378596564,1754921446560,-5194.88,0.00019178,2]
[378596566,1754921446570,-460.0,0.00019178,2]
[378596568,1754921446579,-460.0,0.00019178,2]
[378596570,1754921446589,-460.0,0.00019178,2]
[378596572,1754921446599,-460.0,0.00019178,2]
[378596574,1754921446608,-460.0,0.00019178,2]
[378596576,1754921446617,-460.0,0.00019178,2]
[378596578,1754921446628,-460.0,0.00019178,2]
[378596580,1754921446637,-1279.69,0.00019178,2]
[378596582,1754921446648,-460.0,0.00019178,2]
[378596584,1754921446658,-1001.73,0.00019178,2]
[378596586,1754921446667,-460.0,0.00019178,2]
[378596588,1754921446677,-460.0,0.00019178,2]
[378596590,1754921446688,-520.98385136,0.00019178,2]
[378596592,1754921446698,-764.46,0.00019178,2]
[378596594,1754921446708,-460.0,0.00019178,2]
[378596596,1754921446718,-460.0,0.00019178,2]
[378596598,1754921446727,-460.0,0.00019178,2]
[378596600,1754921446737,-460.0,0.00019178,2]
[378596602,1754921446750,-470.45145204,0.00019178,2]
[378596605,1754921446760,-500.0,0.00019178,2]
[378596606,1754921446770,-460.0,0.00019178,2]
[378596607,1754921446779,-500.0,0.00019178,2]
[378596608,1754921446789,-460.0,0.00019178,2]
[378596609,1754921446800,-500.0,0.00019178,2]
[378596610,1754921446809,-500.0,0.00019178,2]
[378596611,1754921446819,-460.0,0.00019178,2]
[378596612,1754921446829,-500.0,0.00019178,2]
[378596613,1754921446838,-460.0,0.00019178,2]
[378596614,1754921446848,-500.0,0.00019178,2]
[378596615,1754921446858,-460.0,0.00019178,2]
[378596616,1754921446868,-500.0,0.00019178,2]
[378596617,1754921446878,-460.0,0.00019178,2]
[378596618,1754921446887,-500.0,0.00019178,2]
[378596619,1754921446897,-460.0,0.00019178,2]
[378596620,1754921446907,-500.0,0.00019178,2]
[378596621,1754921446917,-500.0,0.00019178,2]
[378596622,1754921446928,-500.0,0.00019178,2]
[378596623,1754921446942,-460.0,0.00019178,2]
[378596624,1754921446951,-460.0,0.00019178,2]
[378596625,1754921446961,-230.86277338,0.00019178,2]
[378596626,1754921446971,-721.85,0.00019178,2]
[378596627,1754921447136,-232.61949085,0.00019178,2]
[378596628,1754921447147,-460.0,0.00019178,2]
[378596629,1754921447156,-460.0,0.00019178,2]
[378596630,1754921447166,-460.0,0.00019178,2]
[378596631,1754921447175,-4594.81,0.00019178,2]
[378596632,1754921447187,-460.0,0.00019178,2]
[378596633,1754921447197,-3518.88,0.00019178,2]
[378596634,1754921447206,-3518.88,0.00019178,2]
[378596635,1754921447215,-460.0,0.00019178,2]
[378596636,1754921447224,-460.0,0.00019178,2]
[378596637,1754921447234,-460.0,0.00019178,2]
[378596638,1754921447243,-479.51,0.00019178,2]
[378596639,1754921447252,-460.0,0.00019178,2]
[378596640,1754921447262,-460.0,0.00019178,2]
[378596641,1754921447271,-464.97307931,0.00019178,2]
[378596642,1754921447280,-690.0,0.00019178,2]
[378596643,1754921447289,-951.46,0.00019178,2]
[378596644,1754921447299,-460.0,0.00019178,2]
[378596645,1754921447308,-2182.57,0.00019178,2]
[378596646,1754921447319,-460.0,0.00019178,2]
[378596647,1754921447328,-481.0030565,0.00019178,2]
[378596648,1754921447338,-460.0,0.00019178,2]
[378596649,1754921447347,-460.0,0.00019178,2]
[378596650,1754921447357,-460.0,0.00019178,2]
[378596651,1754921447366,-460.0,0.00019178,2]
[378596653,1754921447375,-463.60273293,0.00019178,2]
[378596655,1754921447385,-460.0,0.00019178,2]
[378596656,1754921447395,-460.0,0.00019178,2]
[378596658,1754921447404,-460.0,0.00019178,2]
[378596660,1754921447413,-460.0,0.00019178,2]
[378596662,1754921447423,-519.80261382,0.00019178,2]
[378596665,1754921447434,-460.0,0.00019178,2]
[378596667,1754921447444,-460.0,0.00019178,2]
[378596669,1754921447454,-544.62,0.00019178,2]
[378596671,1754921447463,-1170.09,0.00019178,2]
[378596672,1754921447473,-460.0,0.00019178,2]
[378596675,1754921447483,-784.05,0.00019178,2]
[378596677,1754921447494,-460.0,0.00019178,2]
[378596679,1754921447506,-460.0,0.00019178,2]
[378596681,1754921447515,-383.04788146,0.00019178,2]
[378596683,1754921447525,-1249.91,0.00019178,2]
[378596685,1754921447535,-917.27,0.00019178,2]
[378596687,1754921447544,-705.59,0.00019178,2]
[378596689,1754921447554,-465.87003239,0.00019178,2]
[378596691,1754921447563,-1405.51,0.00019178,2]
[378596693,1754921447572,-460.0,0.00019178,2]
[378596695,1754921447581,-460.0,0.00019178,2]
[378596697,1754921447591,-460.0,0.00019178,2]
[378596699,1754921447600,-460.0,0.00019178,2]
[378596701,1754921447609,-799.28,0.00019178,2]
[378596703,1754921447618,-460.0,0.00019178,2]
[378596705,1754921447628,-460.0,0.00019178,2]
[378596707,1754921447638,-460.0,0.00019178,2]
[378596709,1754921447647,-460.0,0.00019178,2]
[378596711,1754921447657,-1030.71,0.00019178,2]
[378596713,1754921447667,-460.0,0.00019178,2]
[378596715,1754921447676,-460.0,0.00019178,2]
[378596717,1754921447688,-460.0,0.00019178,2]
[378596719,1754921447697,-460.0,0.00019178,2]
[378596721,1754921447706,-460.0,0.00019178,2]
[378596723,1754921447717,-460.0,0.00019178,2]
[378596725,1754921447726,-460.0,0.00019178,2]
[378596727,1754921447736,-460.0,0.00019178,2]
[378596729,1754921447746,-460.0,0.00019178,2]
[378596732,1754921447767,-460.0,0.00019178,2]
[378596735,1754921447778,-460.0,0.00019178,2]
[378596737,1754921447788,-553.31747048,0.00019178,2]
[378596739,1754921447798,-460.0,0.00019178,2]
[378596741,1754921447808,-475.54,0.00019178,2]
[378596743,1754921447820,-460.0,0.00019178,2]
[378596745,1754921447832,-460.0,0.00019178,2]
[378596747,1754921447842,-460.0,0.00019178,2]
[378596749,1754921447852,-460.0,0.00019178,2]
[378596751,1754921447862,-528.29519573,0.00019178,2]
[378596753,1754921447873,-933.32,0.00019178,2]
[378596755,1754921447884,-5000.0,0.00019178,2]
[378596758,1754921447897,-2465.54013957,0.00019178,2]
[378596760,1754921447907,-666.0,0.00019178,2]
[378596762,1754921447918,-150.0,0.00019178,2]
[378596764,1754921447929,-3282.0,0.00019207,2]
[378596766,1754921447941,-3282.0,0.00019254,2]
[378596768,1754921447953,-3282.0,0.00019284,2]
[378596770,1754921447964,-151.0,0.000193,2]
[378596772,1754921447975,-420.0,0.00019317,2]
[378596775,1754921447986,-500.0,0.00019351,2]
[378596777,1754921447998,-3282.0,0.00019381,2]
[378596779,1754921448011,-151.0,0.000194,2]
[378596781,1754921448022,-500.0,0.00019414,2]
[378596783,1754921448037,-500.0,0.00019414,2]
[378596785,1754921448048,-500.0,0.00019414,2]
[378596787,1754921448058,-4648.17511322,0.00019415,2]
[378596789,1754921448069,-3016.86777,0.0001944,2]
[378596791,1754921448082,-500.0,0.0001945,2]
[378596793,1754921448092,-500.0,0.0001945,2]
[378596795,1754921448103,-151.0,0.0001945,2]
[378596797,1754921448114,-151.0,0.0001945,2]
[378596799,1754921448125,-151.0,0.00019452,2]
[378596801,1754921448136,-151.0,0.00019452,2]
[378596803,1754921448148,-500.0,0.00019452,2]
[378596806,1754921448158,-151.0,0.00019452,2]
[378596808,1754921448169,-500.0,0.00019452,2]
[378596810,1754921448179,-500.0,0.00019452,2]
[378596812,1754921448191,-604.0,0.00019452,2]
[378596814,1754921448200,-515.30979556,0.00019452,2]
[378596816,1754921448211,-151.0,0.00019452,2]
[378596818,1754921448221,-277.88573075,0.00019452,2]
[378596820,1754921448232,-151.0,0.00019452,2]
[378596822,1754921448243,-151.0,0.00019452,2]
[378596824,1754921448253,-155.57098955,0.00019452,2]
[378596826,1754921448264,-500.0,0.00019452,2]
[378596828,1754921448274,-583.5763041,0.00019452,2]
[378596830,1754921448285,-151.0,0.00019452,2]
[378596832,1754921448296,-198.0,0.00019452,2]
[378596834,1754921448306,-500.0,0.00019452,2]
[378596837,1754921448317,-500.0,0.00019452,2]
[378596839,1754921448328,-151.0,0.00019452,2]
[378596841,1754921448338,-151.0,0.00019452,2]
[378596843,1754921448350,-460.0,0.00019452,2]
[378596845,1754921448361,-460.0,0.00019452,2]
[378596847,1754921448372,-460.0,0.00019452,2]
[378596850,1754921448382,-313.22695606,0.00019452,2]
[378596852,1754921448398,-460.0,0.00019452,2]
[378596854,1754921448409,-460.0,0.00019452,2]
[378596856,1754921448420,-460.0,0.00019452,2]
[378596858,1754921448430,-460.0,0.00019452,2]
[378596860,1754921448443,-460.0,0.00019452,2]
[378596862,1754921448454,-460.0,0.00019452,2]
[378596864,1754921448464,-460.0,0.00019452,2]
[378596866,1754921448475,-460.0,0.00019452,2]
[378596869,1754921448485,-460.0,0.00019452,2]
[378596871,1754921448496,-460.0,0.00019452,2]
[378596873,1754921448507,-460.0,0.00019452,2]
[378596875,1754921448518,-460.0,0.00019452,2]
[378596877,1754921448528,-460.0,0.00019452,2]
[378596879,1754921448539,-460.0,0.00019452,2]
[378596881,1754921448550,-460.0,0.00019452,2]
[378596883,1754921448561,-460.0,0.00019452,2]
[378596885,1754921448572,-460.0,0.00019452,2]
[378596888,1754921448582,-1134.52,0.00019452,2]
[378596890,1754921448593,-460.0,0.00019452,2]
[378596892,1754921448604,-460.0,0.00019452,2]
[378596894,1754921448615,-460.0,0.00019452,2]
[378596896,1754921448625,-460.0,0.00019452,2]
[378596898,1754921448636,-460.0,0.00019452,2]
[378596900,1754921448646,-460.0,0.00019452,2]
[378596902,1754921448656,-460.0,0.00019452,2]
[378596904,1754921448668,-456.27432307,0.00019452,2]
[378596906,1754921448678,-460.0,0.00019452,2]
[378596908,1754921448691,-606.11,0.00019452,2]
[378596910,1754921448701,-907.5,0.00019452,2]
[378596912,1754921448711,-568.57943513,0.00019452,2]
[378596914,1754921448722,-688.47,0.00019452,2]
[378596917,1754921448733,-460.0,0.00019452,2]
[378596919,1754921448744,-636.44,0.00019452,2]
[378596921,1754921448754,-460.0,0.00019452,2]
[378596923,1754921448765,-611.73,0.00019452,2]
[378596925,1754921448775,-460.0,0.00019452,2]
[378596927,1754921448786,-514.22,0.00019452,2]
[378596929,1754921448796,-460.0,0.00019452,2]
[378596931,1754921448806,-1000.0,0.00019452,2]
[378596933,1754921448816,-460.0,0.00019452,2]
[378596935,1754921448826,-460.0,0.00019452,2]
[378596937,1754921448835,-460.0,0.00019452,2]
[378596939,1754921448846,-460.0,0.00019452,2]
[378596941,1754921448855,-460.0,0.00019452,2]
[378596944,1754921448865,-461.4589706,0.00019452,2]
[378596946,1754921448875,-460.0,0.00019452,2]
[378596947,1754921448885,-460.0,0.00019452,2]
[378596950,1754921448895,-460.0,0.00019452,2]
[378596952,1754921448906,-460.0,0.00019452,2]
[378596954,1754921448916,-460.0,0.00019452,2]
[378596956,1754921448926,-460.0,0.00019452,2]
[378596958,1754921448937,-460.0,0.00019452,2]
[378596960,1754921448949,-460.0,0.00019452,2]
[378596962,1754921448959,-460.0,0.00019452,2]
[378596964,1754921448969,-460.0,0.00019452,2]
[378596966,1754921448980,-460.0,0.00019452,2]
[378596968,1754921448989,-460.0,0.00019452,2]
[378596969,1754921449003,-470.12,0.00019452,2]
[378596970,1754921449016,-460.0,0.00019452,2]
[378596971,1754921449026,-460.0,0.00019452,2]
[378596972,1754921449037,-460.0,0.00019452,2]
[378596973,1754921449048,-453.09686162,0.00019452,2]
[378596974,1754921449058,-460.0,0.00019452,2]
[378596975,1754921449069,-201.65488289,0.00019452,2]
[378596976,1754921449080,-864.34,0.00019452,2]
[378596977,1754921449091,-460.0,0.00019452,2]
[378596978,1754921449101,-460.0,0.00019452,2]
[378596979,1754921449111,-228.35510715,0.00019452,2]
[378596980,1754921449123,-460.0,0.00019452,2]
[378596981,1754921449133,-460.0,0.00019452,2]
[378596982,1754921449143,-460.0,0.00019452,2]
[378596983,1754921449154,-460.0,0.00019452,2]
[378596984,1754921449164,-460.0,0.00019452,2]
[378596985,1754921449174,-460.0,0.00019452,2]
[378596986,1754921449185,-671.36,0.00019452,2]
[378596987,1754921449195,-623.81,0.00019452,2]
[378596988,1754921449206,-662.38,0.00019452,2]
[378596989,1754921449215,-608.84,0.00019452,2]
[378596990,1754921449226,-460.0,0.00019452,2]
[378596991,1754921449237,-460.0,0.00019452,2]
[378596992,1754921449247,-536.78,0.00019452,2]
[378596993,1754921449257,-460.0,0.00019452,2]
[378596994,1754921449267,-702.41,0.00019452,2]
[378596995,1754921449276,-460.0,0.00019452,2]
[378596996,1754921449286,-460.0,0.00019452,2]
[378596998,1754921449297,-460.0,0.00019452,2]
[378597000,1754921449307,-460.0,0.00019452,2]
[378597002,1754921449317,-460.0,0.00019452,2]
[378597004,1754921449326,-460.0,0.00019452,2]
[378597006,1754921449336,-460.0,0.00019452,2]
[378597008,1754921449346,-460.0,0.00019452,2]
[378597010,1754921449356,-460.0,0.00019452,2]
[378597012,1754921449366,-460.0,0.00019452,2]
[378597014,1754921449376,-803.77,0.00019452,2]